[Event "41st Jacques-Lemans-Open 2022"]
[Site "St. Veit/Glan"]
[Date "2022.07.10"]
[Round "2.15"]
[White "Ernst, Robert"]
[Black "Bauer, Thomas"]
[Result "1-0"]
[ECO "A43"]
[WhiteElo "2001"]
[BlackElo "2228"]
[Annotator "RC"]
[PlyCount "81"]
[EventDate "2022.07.09"]
[EventType "swiss"]
[EventCountry "AUT"]
[SourceTitle "playchess.com"]
[Source "ChessBase"]
[SourceQuality "1"]
[TimeControl "40/5400+30:1800+30"]

1. d4 {[%emt 0:00:02]} Nf6 {[%emt 0:00:17]} 2. c4 {[%emt 0:00:07]} c5 {[%emt 0:00:04]} 3. d5 {[%emt 0:00:11]} d6 {[%emt 0:00:02]} 4. Nc3 {[%emt 0:00:24]} g6 {[%emt 0:00:02]} 5. e4 {[%emt 0:00:53]} Bg7 {[%emt 0:00:42]} 6. Nge2 {[%emt 0:01:21]} b5 {[%emt 0:02:24]} 7. cxb5 {[%emt 0:02:13]} a6 {[%emt 0:00:17]} 8. Ng3 {[%emt 0:01:44]} h5 {[%emt 0:04:07]} 9. Be2 {[%emt 0:04:53]} axb5 {[%emt 0:06:16]} 10. Bxb5+ {[%emt 0:00:37]} Nbd7 {[%emt 0:00:01]} 11. f4 {[%emt 0:17:44]} O-O {[%emt 0:06:29]} 12. O-O {[%emt 0:03:34]} Ba6 {[%emt 0:05:31]} 13. Bxa6 {[%emt 0:01:40]} Rxa6 {[%emt 0:00:02]} 14. e5 {[%emt 0:21:19]} dxe5 {[%emt 0:12:57]} 15. f5 {[%emt 0:00:13]} c4 {[%emt 0:07:46]} 16. fxg6 {[%emt 0:03:41]} fxg6 {[%emt 0:00:10]} 17. Qe2 {[%emt 0:09:41]} Ng4 {[%emt 0:12:07]} 18. Rxf8+ {[%emt 0:02:07]} Bxf8 {[%emt 0:05:56]} 19. Nge4 {[%emt 0:02:38]} Nb6 {[%emt 0:08:59]} 20. Bg5 {[%emt 0:06:29]} Qc8 {[%emt 0:11:10]} 21. Rf1 {[%emt 0:02:29]} Nh6 {[%emt 0:00:03]} 22. Bxh6 {[%emt 0:10:27]} Bxh6 {[%emt 0:00:02]} 23. Qf3 {[%emt 0:01:07]} Qf8 {[%emt 0:03:54]} 24. Qh3 {[%emt 0:01:30]} Qc8 {[%emt 0:01:03]} 25. Qg3 {[%emt 0:00:44]} Nd7 {[%emt 0:05:21]} 26. d6 {[%emt 0:00:55]} Rxd6 {[%emt 0:00:45]} 27. Nxd6 {[%emt 0:00:09]} Qc5+ {[%emt 0:00:05]} 28. Kh1 {[%emt 0:00:11]} Qxd6 {[%emt 0:00:02]} 29. Rd1 {[%emt 0:01:44]} Qf6 {[%emt 0:01:32]} 30. Qf3 {[%emt 0:01:08]} Qxf3 {[%emt 0:02:47]} 31. gxf3 {[%emt 0:00:01]} Nc5 {[%emt 0:00:10]} 32. a4 {[%emt 0:01:19]} Nd3 {[%emt 0:00:10]} 33. a5 {[%emt 0:00:20]} Be3 {[%emt 0:02:06]} 34. Ra1 {[%emt 0:00:28]} h4 35. a6 h3 36. a7 Nf2+ 37. Kg1 Ng4+ 38. Kf1 Nxh2+ 39. Ke2 Bxa7 40. Rxa7 g5 41. Ra1 1-0

[Event "41st Jacques-Lemans-Open 2022"]
[Site "St. Veit/Glan"]
[Date "2022.07.10"]
[Round "2.16"]
[White "Manhardt, Thomas"]
[Black "Katter, Katharina"]
[Result "1-0"]
[ECO "A01"]
[WhiteElo "2227"]
[BlackElo "2000"]
[Annotator "RC"]
[PlyCount "111"]
[EventDate "2022.07.09"]
[EventType "swiss"]
[EventCountry "AUT"]
[SourceTitle "playchess.com"]
[Source "ChessBase"]
[SourceQuality "1"]
[TimeControl "40/5400+30:1800+30"]

1. b3 {[%emt 0:00:06]} Nf6 {[%emt 0:00:06]} 2. Bb2 {[%emt 0:00:16]} d5 {[%emt 0:00:11]} 3. e3 {[%emt 0:00:31]} Bf5 {[%emt 0:00:11]} 4. Nf3 {[%emt 0:02:05]} e6 {[%emt 0:01:24]} 5. Bd3 {[%emt 0:01:19]} Bxd3 {[%emt 0:01:48]} 6. cxd3 {[%emt 0:00:03]} c5 {[%emt 0:02:19]} 7. O-O {[%emt 0:01:56]} Nc6 {[%emt 0:02:39]} 8. d4 {[%emt 0:03:42]} Rc8 {[%emt 0:08:37]} 9. dxc5 {[%emt 0:12:30]} Bxc5 {[%emt 0:00:21]} 10. a3 {[%emt 0:00:15]} Bd6 {[%emt 0:02:51]} 11. b4 {[%emt 0:03:05]} a6 {[%emt 0:05:02]} 12. d3 {[%emt 0:00:53]} O-O {[%emt 0:01:57]} 13. Nbd2 {[%emt 0:00:54]} e5 {[%emt 0:03:31]} 14. h3 {[%emt 0:02:31]} Re8 {[%emt 0:03:17]} 15. Rc1 {[%emt 0:02:03]} Qe7 {[%emt 0:09:39]} 16. Qe2 {[%emt 0:06:35]} a5 {[%emt 0:04:11]} 17. b5 {[%emt 0:03:49]} Nb8 {[%emt 0:00:05]} 18. a4 {[%emt 0:04:25]} Nbd7 {[%emt 0:06:36]} 19. Nb3 {[%emt 0:01:07]} Bb4 {[%emt 0:05:48]} 20. Rxc8 {[%emt 0:12:37]} Rxc8 {[%emt 0:00:15]} 21. Rc1 {[%emt 0:00:05]} Rxc1+ {[%emt 0:06:14]} 22. Nxc1 {[%emt 0:02:09]} e4 {[%emt 0:05:29]} 23. Nd4 {[%emt 0:02:05]} Ba3 {[%emt 0:06:30]} 24. dxe4 {[%emt 0:03:47]} dxe4 {[%emt 0:00:35]} 25. Ncb3 {[%emt 0:04:14]} Bb4 {[%emt 0:12:22]} 26. Qc2 {[%emt 0:07:02]} Nb6 {[%emt 0:03:14]} 27. Nf5 {[%emt 0:05:30]} Qe6 {[%emt 0:01:49]} 28. Bxf6 {[%emt 0:02:27]} Qxf5 {[%emt 0:02:46]} 29. Bd4 {[%emt 0:05:13]} Nxa4 {[%emt 0:00:26]} 30. Nxa5 {[%emt 0:01:28]} Qxb5 {[%emt 0:00:49]} 31. Qc8+ {[%emt 0:00:23]} Bf8 {[%emt 0:00:10]} 32. Nxb7 {[%emt 0:02:01]} Qb4 {[%emt 0:01:27]} 33. Kh2 {[%emt 0:02:11]} Qe7 {[%emt 0:01:28]} 34. g3 {[%emt 0:03:34]} h5 {[%emt 0:01:16]} 35. Qa8 {[%emt 0:02:07]} Kh7 {[%emt 0:01:08]} 36. Nd8 {[%emt 0:01:29]} Qd7 {[%emt 0:01:26]} 37. Qxe4+ {[%emt 0:00:52]} f5 {[%emt 0:00:27]} 38. Qa8 {[%emt 0:01:08]} Nc5 {[%emt 0:00:31]} 39. Nc6 {[%emt 0:00:48]} Ne6 {[%emt 0:00:31]} 40. Ne5 {[%emt 0:00:43]} Qc7 {[%emt 0:00:31]} 41. Qe8 {[%emt 0:01:06]} Nxd4 {[%emt 0:05:05]} 42. Qxh5+ {[%emt 0:04:31]} Kg8 {[%emt 0:00:45]} 43. exd4 {[%emt 0:00:08]} Qc2 {[%emt 0:02:33]} 44. Qf3 {[%emt 0:03:44]} Bb4 {[%emt 0:01:04]} 45. Kg2 {[%emt 0:00:50]} Bc3 {[%emt 0:00:26]} 46. Nd3 {[%emt 0:01:17]} g6 {[%emt 0:00:57]} 47. Nf4 {[%emt 0:02:00]} Qe4 {[%emt 0:01:00]} 48. Qxe4 {[%emt 0:02:20]} fxe4 {[%emt 0:00:02]} 49. Nxg6 {[%emt 0:00:30]} Bxd4 {[%emt 0:00:05]} 50. Ne7+ {[%emt 0:00:27]} Kf7 {[%emt 0:00:18]} 51. Nf5 {[%emt 0:00:06]} Bc5 {[%emt 0:00:32]} 52. g4 {[%emt 0:00:35]} Kf6 {[%emt 0:00:13]} 53. h4 {[%emt 0:00:19]} Bf8 {[%emt 0:00:28]} 54. Kg3 {[%emt 0:00:52]} Ke5 {[%emt 0:00:05]} 55. h5 {[%emt 0:00:31]} Kf6 {[%emt 0:00:17]} 56. Kf4 {[%emt 0:00:14]} 1-0

[Event "41st Jacques-Lemans-Open 2022"]
[Site "St. Veit/Glan"]
[Date "2022.07.10"]
[Round "2.17"]
[White "Hng, Mei-En Emmanuelle"]
[Black "Hechl, Gerald"]
[Result "1/2-1/2"]
[ECO "B21"]
[WhiteElo "1997"]
[BlackElo "2222"]
[Annotator "RC"]
[PlyCount "49"]
[EventDate "2022.07.09"]
[EventType "swiss"]
[EventCountry "AUT"]
[SourceTitle "playchess.com"]
[Source "ChessBase"]
[SourceQuality "1"]
[TimeControl "40/5400+30:1800+30"]

1. e4 {[%emt 0:00:04]} c5 {[%emt 0:00:06]} 2. d4 {[%emt 0:00:29]} cxd4 {[%emt 0:00:04]} 3. c3 {[%emt 0:00:05]} dxc3 {[%emt 0:00:02]} 4. Nxc3 {[%emt 0:00:07]} e6 {[%emt 0:00:04]} 5. Bc4 {[%emt 0:00:16]} a6 {[%emt 0:00:06]} 6. Nf3 {[%emt 0:03:29]} Ne7 {[%emt 0:00:04]} 7. a4 {[%emt 0:01:53]} Nbc6 {[%emt 0:03:56]} 8. O-O {[%emt 0:00:27]} Ng6 {[%emt 0:04:04]} 9. Be3 {[%emt 0:01:04]} Be7 {[%emt 0:00:32]} 10. Nd4 {[%emt 0:01:24]} Qc7 {[%emt 0:11:59]} 11. f4 {[%emt 0:19:19]} Nxd4 {[%emt 0:11:08]} 12. Qxd4 {[%emt 0:00:34]} O-O {[%emt 0:00:21]} 13. a5 {[%emt 0:10:59]} Bb4 {[%emt 0:05:30]} 14. Bd3 {[%emt 0:15:09]} Bxc3 {[%emt 0:04:17]} 15. bxc3 {[%emt 0:06:42]} d6 {[%emt 0:04:54]} 16. Qb4 {[%emt 0:01:21]} Ne7 {[%emt 0:10:00]} 17. Bb6 {[%emt 0:03:03]} Qd7 {[%emt 0:01:11]} 18. Rad1 {[%emt 0:00:33]} d5 {[%emt 0:03:46]} 19. Bc2 {[%emt 0:03:58]} Nc6 {[%emt 0:00:39]} 20. Qa3 {[%emt 0:00:30]} Re8 {[%emt 0:01:49]} 21. Ba4 {[%emt 0:15:07]} Qe7 {[%emt 0:02:31]} 22. Bc5 {[%emt 0:02:04]} Qc7 {[%emt 0:01:42]} 23. Bb6 {[%emt 0:00:06]} Qe7 {[%emt 0:00:25]} 24. Bc5 {[%emt 0:00:14]} Qc7 {[%emt 0:00:36]} 25. Bb6 {[%emt 0:00:26]} 1/2-1/2

[Event "41st Jacques-Lemans-Open 2022"]
[Site "St. Veit/Glan"]
[Date "2022.07.10"]
[Round "2.18"]
[White "Lerch, Johannes"]
[Black "Tonel, Giulia"]
[Result "1-0"]
[ECO "A05"]
[WhiteElo "2222"]
[BlackElo "1969"]
[Annotator "RC"]
[PlyCount "83"]
[EventDate "2022.07.09"]
[EventType "swiss"]
[EventCountry "AUT"]
[SourceTitle "playchess.com"]
[Source "ChessBase"]
[SourceQuality "1"]
[TimeControl "40/5400+30:1800+30"]

1. Nf3 {[%emt 0:00:03]} Nf6 {[%emt 0:00:36]} 2. c4 {[%emt 0:00:05]} d6 {[%emt 0:00:33]} 3. b3 {[%emt 0:00:52]} g6 {[%emt 0:01:17]} 4. Bb2 {[%emt 0:00:05]} Bg7 {[%emt 0:00:07]} 5. g3 {[%emt 0:00:11]} O-O {[%emt 0:02:18]} 6. Bg2 {[%emt 0:00:06]} e5 {[%emt 0:00:36]} 7. d3 {[%emt 0:00:22]} Nc6 {[%emt 0:01:41]} 8. O-O {[%emt 0:01:55]} a6 {[%emt 0:02:28]} 9. Nbd2 {[%emt 0:02:00]} Rb8 {[%emt 0:04:10]} 10. Rc1 {[%emt 0:12:12]} Re8 {[%emt 0:05:25]} 11. a3 {[%emt 0:02:53]} Bd7 {[%emt 0:03:01]} 12. Qc2 {[%emt 0:02:48]} Qc8 {[%emt 0:07:20]} 13. b4 {[%emt 0:04:10]} b6 {[%emt 0:10:24]} 14. e3 {[%emt 0:11:48]} Bh3 {[%emt 0:10:24]} 15. Bxh3 {[%emt 0:13:47]} Qxh3 {[%emt 0:00:09]} 16. Qa4 {[%emt 0:02:54]} Ne7 {[%emt 0:04:52]} 17. Qxa6 {[%emt 0:02:36]} Ng4 {[%emt 0:05:53]} 18. Rb1 {[%emt 0:06:59]} f5 {[%emt 0:03:05]} 19. Qa4 {[%emt 0:04:29]} Bh6 {[%emt 0:14:43]} 20. Rfe1 {[%emt 0:02:28]} c6 {[%emt 0:03:22]} 21. Re2 {[%emt 0:06:35]} Rf8 {[%emt 0:06:31]} 22. Nf1 {[%emt 0:08:11]} e4 {[%emt 0:03:26]} 23. Ne1 {[%emt 0:01:52]} Bg7 {[%emt 0:02:35]} 24. Bxg7 {[%emt 0:02:15]} Kxg7 {[%emt 0:00:05]} 25. Qc2 {[%emt 0:00:21]} Nf6 {[%emt 0:02:09]} 26. Rd1 {[%emt 0:03:59]} d5 {[%emt 0:01:37]} 27. a4 {[%emt 0:03:50]} g5 {[%emt 0:00:53]} 28. f3 {[%emt 0:01:04]} Rbc8 {[%emt 0:00:42]} 29. c5 {[%emt 0:01:18]} bxc5 {[%emt 0:00:55]} 30. Qxc5 {[%emt 0:00:01]} Rf7 {[%emt 0:00:13]} 31. a5 {[%emt 0:00:30]} Ng6 {[%emt 0:00:34]} 32. b5 {[%emt 0:00:43]} Ne5 {[%emt 0:00:37]} 33. Rf2 {[%emt 0:00:36]} Ned7 {[%emt 0:01:45]} 34. Qc3 {[%emt 0:00:15]} c5 {[%emt 0:01:01]} 35. b6 {[%emt 0:00:45]} Kg6 {[%emt 0:00:50]} 36. Rb1 {[%emt 0:01:04]} Rb8 {[%emt 0:00:55]} 37. b7 {[%emt 0:00:45]} d4 {[%emt 0:00:36]} 38. exd4 {[%emt 0:01:36]} Nd5 {[%emt 0:00:49]} 39. Qc4 {[%emt 0:00:30]} N7f6 {[%emt 0:00:25]} 40. dxe4 {[%emt 0:00:52]} fxe4 {[%emt 0:00:54]} 41. fxe4 {[%emt 0:01:44]} Rbxb7 {[%emt 0:03:50]} 42. Rxb7 {[%emt 0:01:24]} 1-0

[Event "41st Jacques-Lemans-Open 2022"]
[Site "St. Veit/Glan"]
[Date "2022.07.10"]
[Round "2.19"]
[White "Markun, Ozbej"]
[Black "Ofner, Maximilian"]
[Result "1/2-1/2"]
[ECO "B19"]
[WhiteElo "1915"]
[BlackElo "2194"]
[Annotator "RC"]
[PlyCount "117"]
[EventDate "2022.07.09"]
[EventType "swiss"]
[EventCountry "AUT"]
[SourceTitle "playchess.com"]
[Source "ChessBase"]
[SourceQuality "1"]
[TimeControl "40/5400+30:1800+30"]

1. e4 {[%emt 0:00:06]} c6 {[%emt 0:00:05]} 2. d4 {[%emt 0:00:09]} d5 {[%emt 0:00:04]} 3. Nc3 {[%emt 0:00:10]} dxe4 {[%emt 0:00:04]} 4. Nxe4 {[%emt 0:00:06]} Bf5 {[%emt 0:00:05]} 5. Ng3 {[%emt 0:00:38]} Bg6 {[%emt 0:00:06]} 6. h4 {[%emt 0:00:28]} h6 {[%emt 0:00:11]} 7. Nf3 {[%emt 0:00:09]} Nd7 {[%emt 0:00:06]} 8. h5 {[%emt 0:00:09]} Bh7 {[%emt 0:00:18]} 9. Bd3 {[%emt 0:00:12]} Bxd3 {[%emt 0:00:05]} 10. Qxd3 {[%emt 0:00:06]} e6 {[%emt 0:00:09]} 11. Bd2 {[%emt 0:00:36]} Ngf6 {[%emt 0:00:10]} 12. O-O-O {[%emt 0:00:19]} Be7 {[%emt 0:00:13]} 13. Ne4 {[%emt 0:04:08]} Nxe4 {[%emt 0:00:11]} 14. Qxe4 {[%emt 0:00:07]} Nf6 {[%emt 0:00:03]} 15. Qe2 {[%emt 0:00:15]} Qd5 {[%emt 0:00:14]} 16. c4 {[%emt 0:01:59]} Qe4 {[%emt 0:00:19]} 17. Qxe4 {[%emt 0:00:06]} Nxe4 {[%emt 0:00:04]} 18. Be1 {[%emt 0:00:36]} c5 {[%emt 0:09:21]} 19. d5 {[%emt 0:24:15]} Bf6 {[%emt 0:24:30]} 20. dxe6 {[%emt 0:11:50]} fxe6 {[%emt 0:00:51]} 21. Rd3 {[%emt 0:00:30]} Ke7 {[%emt 0:09:56]} 22. Re3 {[%emt 0:04:29]} Nd6 {[%emt 0:00:45]} 23. b3 {[%emt 0:04:39]} Nf5 {[%emt 0:02:33]} 24. Re4 {[%emt 0:06:28]} Rhd8 {[%emt 0:02:01]} 25. Bd2 {[%emt 0:04:28]} Rd6 {[%emt 0:02:08]} 26. Rhe1 {[%emt 0:07:43]} Rad8 {[%emt 0:04:44]} 27. Bf4 {[%emt 0:01:41]} Ra6 {[%emt 0:00:21]} 28. Kb1 {[%emt 0:02:15]} Bc3 {[%emt 0:16:13]} 29. Rc1 {[%emt 0:02:58]} Bf6 {[%emt 0:04:21]} 30. g4 {[%emt 0:06:30]} Nd4 {[%emt 0:00:45]} 31. Ne5 {[%emt 0:00:57]} Bxe5 {[%emt 0:10:40]} 32. Rxe5 {[%emt 0:02:52]} Rc6 {[%emt 0:00:47]} 33. Re3 {[%emt 0:06:45]} Rf8 {[%emt 0:01:32]} 34. Bg3 {[%emt 0:00:48]} Rf3 {[%emt 0:03:56]} 35. Rce1 {[%emt 0:03:32]} Rxe3 {[%emt 0:01:47]} 36. Rxe3 {[%emt 0:00:12]} Rc8 {[%emt 0:00:50]} 37. Be5 {[%emt 0:02:03]} Kf7 {[%emt 0:01:29]} 38. f4 {[%emt 0:03:41]} Nc6 {[%emt 0:01:10]} 39. Bc3 {[%emt 0:00:10]} Rd8 {[%emt 0:00:25]} 40. Kc1 {[%emt 0:00:14]} Nd4 {[%emt 0:04:57]} 41. Re4 {[%emt 0:05:03]} b6 {[%emt 0:09:02]} 42. Bxd4 {[%emt 0:13:04]} cxd4 {[%emt 0:00:05]} 43. Kd2 {[%emt 0:00:37]} d3 {[%emt 0:00:42]} 44. b4 {[%emt 0:03:17]} Kf6 {[%emt 0:02:35]} 45. a4 {[%emt 0:04:31]} a5 {[%emt 0:04:20]} 46. bxa5 {[%emt 0:06:09]} bxa5 {[%emt 0:00:08]} 47. c5 {[%emt 0:01:14]} Rd5 {[%emt 0:05:34]} 48. Re3 {[%emt 0:00:45]} Rxc5 {[%emt 0:08:08]} 49. Kxd3 {[%emt 0:00:05]} e5 {[%emt 0:00:03]} 50. fxe5+ {[%emt 0:00:06]} Rxe5 {[%emt 0:00:01]} 51. Rxe5 {[%emt 0:00:20]} Kxe5 {[%emt 0:00:00]} 52. Ke3 {[%emt 0:00:07]} Kf6 {[%emt 0:04:43]} 53. Kf4 {[%emt 0:00:08]} g6 {[%emt 0:00:19]} 54. hxg6 {[%emt 0:00:48]} Kxg6 {[%emt 0:00:05]} 55. Ke4 {[%emt 0:00:52]} Kg5 {[%emt 0:00:17]} 56. Kf3 {[%emt 0:00:05]} Kg6 {[%emt 0:00:22]} 57. Ke4 {[%emt 0:00:04]} Kg5 {[%emt 0:00:04]} 58. Kf3 {[%emt 0:00:03]} Kg6 {[%emt 0:00:03]} 59. Ke4 {[%emt 0:00:03]} 1/2-1/2

[Event "41st Jacques-Lemans-Open 2022"]
[Site "St. Veit/Glan"]
[Date "2022.07.10"]
[Round "2.20"]
[White "Koelber, Daniel"]
[Black "Tumanyan, Gor"]
[Result "1/2-1/2"]
[ECO "B38"]
[WhiteElo "2176"]
[BlackElo "1884"]
[Annotator "RC"]
[PlyCount "69"]
[EventDate "2022.07.09"]
[EventType "swiss"]
[EventCountry "AUT"]
[SourceTitle "playchess.com"]
[Source "ChessBase"]
[SourceQuality "1"]
[TimeControl "40/5400+30:1800+30"]

1. e4 {[%emt 0:00:06]} c5 {[%emt 0:00:03]} 2. Nf3 {[%emt 0:00:09]} g6 {[%emt 0:00:04]} 3. d4 {[%emt 0:00:24]} cxd4 {[%emt 0:00:05]} 4. Nxd4 {[%emt 0:00:19]} Bg7 {[%emt 0:00:10]} 5. c4 {[%emt 0:00:14]} Nc6 {[%emt 0:00:41]} 6. Be3 {[%emt 0:00:07]} Nf6 {[%emt 0:00:06]} 7. Nc3 {[%emt 0:00:03]} O-O {[%emt 0:00:26]} 8. Be2 {[%emt 0:02:48]} d6 {[%emt 0:00:35]} 9. O-O {[%emt 0:00:10]} Nxd4 {[%emt 0:01:12]} 10. Bxd4 {[%emt 0:00:16]} Bd7 {[%emt 0:01:28]} 11. f3 {[%emt 0:01:14]} Bc6 {[%emt 0:16:06]} 12. b4 {[%emt 0:03:03]} b6 {[%emt 0:02:28]} 13. Qd2 {[%emt 0:04:07]} a5 {[%emt 0:07:44]} 14. a3 {[%emt 0:01:59]} Qc7 {[%emt 0:17:43]} 15. Nd5 {[%emt 0:26:19]} Bxd5 {[%emt 0:02:26]} 16. cxd5 {[%emt 0:03:35]} axb4 {[%emt 0:21:30]} 17. Rac1 {[%emt 0:02:59]} Qa7 {[%emt 0:17:11]} 18. axb4 {[%emt 0:00:24]} Qa2 {[%emt 0:03:54]} 19. Rc2 {[%emt 0:04:23]} Qa4 {[%emt 0:00:49]} 20. Rfc1 {[%emt 0:09:41]} b5 {[%emt 0:03:13]} 21. Rc7 {[%emt 0:01:29]} Qb3 {[%emt 0:01:53]} 22. Ba7 {[%emt 0:07:17]} Qa4 {[%emt 0:00:43]} 23. Bf2 {[%emt 0:02:17]} Qb3 {[%emt 0:00:32]} 24. Bd1 {[%emt 0:04:14]} Ra2 {[%emt 0:00:40]} 25. Bxb3 {[%emt 0:09:11]} Rxd2 {[%emt 0:00:04]} 26. Bd1 {[%emt 0:03:03]} Rb2 {[%emt 0:00:35]} 27. Be1 {[%emt 0:03:21]} Bh6 {[%emt 0:00:21]} 28. Ra1 {[%emt 0:00:08]} Bd2 {[%emt 0:00:56]} 29. Bxd2 {[%emt 0:01:11]} Rxd2 {[%emt 0:00:02]} 30. Rxe7 {[%emt 0:05:05]} Rc8 {[%emt 0:00:52]} 31. Rea7 {[%emt 0:02:53]} Rc4 {[%emt 0:00:44]} 32. Kf1 {[%emt 0:02:25]} Rxb4 {[%emt 0:00:13]} 33. R7a2 {[%emt 0:00:18]} Rbb2 {[%emt 0:00:19]} 34. Rxb2 {[%emt 0:00:48]} Rxb2 {[%emt 0:00:01]} 35. Ra7 {[%emt 0:00:21]} 1/2-1/2

[Event "41st Jacques-Lemans-Open 2022"]
[Site "St. Veit/Glan"]
[Date "2022.07.10"]
[Round "2.21"]
[White "Gockner, Martin"]
[Black "Frank, Emanuel"]
[Result "0-1"]
[ECO "C55"]
[WhiteElo "1879"]
[BlackElo "2160"]
[Annotator "RC"]
[PlyCount "38"]
[EventDate "2022.07.09"]
[EventType "swiss"]
[EventCountry "AUT"]
[SourceTitle "playchess.com"]
[Source "ChessBase"]
[SourceQuality "1"]
[TimeControl "40/5400+30:1800+30"]

1. e4 {[%emt 0:03:58]} e5 {[%emt 0:00:06]} 2. Bc4 {[%emt 0:00:16]} Nc6 {[%emt 0:00:24]} 3. Nf3 {[%emt 0:01:27]} Nf6 {[%emt 0:00:17]} 4. d3 {[%emt 0:00:11]} Be7 {[%emt 0:00:35]} 5. O-O {[%emt 0:00:27]} O-O {[%emt 0:00:07]} 6. c3 {[%emt 0:03:06]} d5 {[%emt 0:05:02]} 7. exd5 {[%emt 0:00:28]} Nxd5 {[%emt 0:00:05]} 8. h3 {[%emt 0:01:56]} a6 {[%emt 0:08:56]} 9. a4 {[%emt 0:04:35]} Be6 {[%emt 0:08:48]} 10. Re1 {[%emt 0:01:16]} Bf6 {[%emt 0:00:53]} 11. Na3 {[%emt 0:18:48]} h6 {[%emt 0:09:12]} 12. Qc2 {[%emt 0:17:15]} Qd7 {[%emt 0:02:44]} 13. Bxd5 {[%emt 0:05:02]} Qxd5 {[%emt 0:05:04]} 14. Nh2 {[%emt 0:03:43]} Rad8 {[%emt 0:03:13]} 15. Re3 {[%emt 0:00:36]} Bf5 {[%emt 0:04:15]} 16. Rg3 {[%emt 0:06:01]} Bh4 {[%emt 0:02:36]} 17. c4 {[%emt 0:06:12]} Qd7 {[%emt 0:01:12]} 18. Re3 {[%emt 0:00:52]} Nb4 {[%emt 0:02:48]} 19. Qc3 {[%emt 0:01:19]} Nxd3 {[%emt 0:00:25]} 0-1

[Event "41st Jacques-Lemans-Open 2022"]
[Site "St. Veit/Glan"]
[Date "2022.07.10"]
[Round "2.22"]
[White "Schein, Karl-Heinz"]
[Black "Grafenberger, Dieter"]
[Result "0-1"]
[ECO "A41"]
[WhiteElo "2167"]
[BlackElo "1879"]
[Annotator "RC"]
[PlyCount "166"]
[EventDate "2022.07.09"]
[EventType "swiss"]
[EventCountry "AUT"]
[SourceTitle "playchess.com"]
[Source "ChessBase"]
[SourceQuality "1"]
[TimeControl "40/5400+30:1800+30"]

1. d4 {[%emt 0:00:05]} d6 {[%emt 0:00:35]} 2. c4 {[%emt 0:01:08]} c6 {[%emt 0:01:26]} 3. Nc3 {[%emt 0:01:35]} Nd7 {[%emt 0:00:09]} 4. e4 {[%emt 0:01:02]} e5 5. Nf3 {[%emt 0:00:42]} Be7 {[%emt 0:00:30]} 6. Be2 {[%emt 0:01:10]} Ngf6 {[%emt 0:00:11]} 7. O-O {[%emt 0:00:33]} Qc7 {[%emt 0:00:13]} 8. h3 {[%emt 0:01:34]} O-O {[%emt 0:00:27]} 9. Be3 {[%emt 0:05:23]} Re8 {[%emt 0:00:30]} 10. d5 {[%emt 0:00:57]} c5 {[%emt 0:02:10]} 11. Rb1 {[%emt 0:06:14]} Nf8 {[%emt 0:01:45]} 12. Ne1 {[%emt 0:03:21]} Ng6 {[%emt 0:00:22]} 13. Nd3 {[%emt 0:00:36]} Bd7 {[%emt 0:04:52]} 14. b4 {[%emt 0:01:57]} b6 {[%emt 0:00:22]} 15. b5 {[%emt 0:07:57]} Qc8 {[%emt 0:01:38]} 16. Kh2 {[%emt 0:07:04]} h6 {[%emt 0:01:52]} 17. f4 {[%emt 0:01:41]} exf4 {[%emt 0:00:24]} 18. Nxf4 {[%emt 0:00:25]} Ne5 {[%emt 0:02:43]} 19. Qb3 {[%emt 0:05:36]} Kh7 {[%emt 0:06:14]} 20. Nd3 {[%emt 0:01:29]} Ng6 {[%emt 0:10:13]} 21. Qc2 {[%emt 0:04:52]} Bf8 {[%emt 0:03:06]} 22. Ne1 {[%emt 0:03:02]} Qd8 {[%emt 0:01:27]} 23. Nf3 {[%emt 0:01:25]} Qe7 {[%emt 0:00:28]} 24. Bd3 {[%emt 0:00:20]} Kg8 {[%emt 0:00:30]} 25. Rbe1 {[%emt 0:00:36]} Bc8 {[%emt 0:01:28]} 26. Bc1 {[%emt 0:05:58]} Nd7 {[%emt 0:00:40]} 27. Bb2 {[%emt 0:09:47]} Nde5 {[%emt 0:00:38]} 28. Nxe5 {[%emt 0:01:49]} Nxe5 {[%emt 0:18:14]} 29. Nb1 {[%emt 0:05:50]} g6 {[%emt 0:01:41]} 30. Nd2 {[%emt 0:07:03]} Bg7 {[%emt 0:00:18]} 31. Be2 {[%emt 0:01:27]} Qh4 {[%emt 0:03:49]} 32. Qb3 {[%emt 0:03:14]} Qg5 {[%emt 0:13:51]} 33. Bc1 {[%emt 0:02:47]} Qh4 {[%emt 0:06:32]} 34. Kg1 {[%emt 0:01:49]} g5 {[%emt 0:04:04]} 35. Bb2 {[%emt 0:04:19]} g4 {[%emt 0:00:37]} 36. hxg4 {[%emt 0:00:46]} Bxg4 {[%emt 0:02:21]} 37. Bxg4 {[%emt 0:01:38]} Qxg4 {[%emt 0:07:46]} 38. Bxe5 {[%emt 0:00:04]} Rxe5 {[%emt 0:02:10]} 39. Qf3 {[%emt 0:00:47]} Qg6 {[%emt 0:00:30]} 40. Qd3 {[%emt 0:01:02]} Rg5 {[%emt 0:00:33]} 41. Rf2 {[%emt 0:10:04]} Bd4 {[%emt 0:00:28]} 42. Re3 {[%emt 0:00:12]} Kh8 {[%emt 0:14:50]} 43. Nf3 {[%emt 0:00:26]} Bxe3 {[%emt 0:00:12]} 44. Qxe3 {[%emt 0:00:03]} Rg4 {[%emt 0:01:38]} 45. e5 {[%emt 0:02:39]} Re4 {[%emt 0:02:32]} 46. Qd3 {[%emt 0:02:14]} dxe5 {[%emt 0:05:59]} 47. d6 {[%emt 0:01:16]} Rd4 {[%emt 0:00:42]} 48. Qe2 {[%emt 0:01:28]} Re4 {[%emt 0:03:07]} 49. Qd2 {[%emt 0:00:46]} Rd8 {[%emt 0:01:08]} 50. d7 {[%emt 0:00:36]} Qe6 {[%emt 0:01:28]} 51. Qd3 {[%emt 0:02:30]} f5 {[%emt 0:02:06]} 52. Rd2 {[%emt 0:00:41]} Rxc4 {[%emt 0:00:56]} 53. Qb3 {[%emt 0:05:09]} Rc1+ {[%emt 0:01:14]} 54. Kf2 {[%emt 0:00:08]} Rc4 {[%emt 0:02:59]} 55. Re2 {[%emt 0:01:51]} e4 {[%emt 0:00:22]} 56. Nd2 {[%emt 0:00:29]} e3+ {[%emt 0:00:57]} 57. Rxe3 {[%emt 0:00:07]} Rf4+ {[%emt 0:00:06]} 58. Nf3 {[%emt 0:01:14]} Qxd7 {[%emt 0:00:53]} 59. g3 {[%emt 0:03:16]} Re4 {[%emt 0:00:31]} 60. Qb2+ {[%emt 0:02:37]} Qg7 {[%emt 0:00:28]} 61. Ne5 {[%emt 0:00:44]} Rxe3 {[%emt 0:00:34]} 62. Kxe3 {[%emt 0:00:23]} Re8 {[%emt 0:00:27]} 63. Kf4 {[%emt 0:00:08]} Qxe5+ {[%emt 0:00:31]} 64. Qxe5+ {[%emt 0:00:07]} Rxe5 {[%emt 0:00:02]} 65. Kxe5 {[%emt 0:00:07]} c4 {[%emt 0:00:39]} 66. Kd4 {[%emt 0:00:10]} c3 {[%emt 0:00:13]} 67. Kxc3 {[%emt 0:00:03]} Kg7 {[%emt 0:00:06]} 68. Kd4 {[%emt 0:00:22]} Kf6 {[%emt 0:00:07]} 69. Ke3 {[%emt 0:00:16]} Kg5 {[%emt 0:00:18]} 70. Kf3 {[%emt 0:00:09]} Kf6 {[%emt 0:00:37]} 71. Ke3 {[%emt 0:00:20]} Ke5 {[%emt 0:00:20]} 72. Kf3 {[%emt 0:00:05]} h5 {[%emt 0:01:05]} 73. Ke3 {[%emt 0:00:03]} f4+ {[%emt 0:01:05]} 74. gxf4+ {[%emt 0:00:09]} Kf5 {[%emt 0:00:01]} 75. Kf3 {[%emt 0:00:26]} h4 {[%emt 0:00:03]} 76. a3 {[%emt 0:00:24]} h3 {[%emt 0:00:11]} 77. Kg3 {[%emt 0:00:02]} h2 {[%emt 0:00:15]} 78. Kxh2 {[%emt 0:00:05]} Kxf4 {[%emt 0:00:12]} 79. Kg2 {[%emt 0:00:17]} Ke3 {[%emt 0:00:12]} 80. Kf1 {[%emt 0:00:57]} Kd2 {[%emt 0:00:14]} 81. Kf2 {[%emt 0:00:15]} Kc3 {[%emt 0:00:14]} 82. Ke3 {[%emt 0:00:27]} Kc4 {[%emt 0:00:21]} 83. Kd2 {[%emt 0:00:11]} Kb3 0-1